fUSD/lending_fUSD_20260519
["ID","MTS","AMOUNT","RATE_DAILY","PERIOD"]
[422577231,1779120151000,3397.59706204,8e-05,2]
[422577235,1779120234000,262.60860515,0.000101,2]
[422577236,1779120281000,-163.42,0.00011315,2]
[422577239,1779120383000,-153.19,0.00011817,2]
[422577238,1779120383000,-153.19,0.00011315,2]
[422577242,1779120384000,337.38006296,0.0001,2]
[422577241,1779120384000,-153.19,0.00012447,2]
[422577240,1779120384000,-153.19,0.0001232,2]
[422577243,1779120385000,2187.52434136,0.000107,2]
[422577245,1779120385000,10000.0,0.000107,2]
[422577246,1779120385000,10000.0,0.000107,2]
[422577247,1779120385000,10000.0,0.000107,2]
[422577248,1779120385000,6034.24422569,0.000107,2]
[422577244,1779120385000,10000.0,0.000107,2]
[422577250,1779120385000,-153.19,0.00012447,2]
[422577251,1779120385000,-66.85989656,0.00012447,2]
[422577252,1779120385000,-86.33010344,0.00012518,2]
[422577254,1779120385000,-153.19,0.00012518,2]
[422577253,1779120385000,-153.19,0.00012518,2]
[422577249,1779120385000,2248.03883432,0.0001,2]
[422577255,1779120386000,-153.19,0.00012518,2]
[422577257,1779120404000,-160.53034067,0.00012518,2]
[422577258,1779120428000,150.10006,0.00030136,120]
[422577259,1779120438000,159.2,6.4e-05,2]
[422577260,1779120439000,159.2,9.474e-05,2]
[422577263,1779120541000,1000.0,0.00030135,120]
[422577274,1779120632000,-208.5339928,0.00012605,2]
[422577268,1779120632000,-690.23,0.00012518,2]
[422577267,1779120632000,-248.32,0.00012488,2]
[422577272,1779120632000,-179.67,0.00012561,2]
[422577269,1779120632000,-603.33955589,0.00012518,2]
[422577271,1779120632000,-150.0,0.00012554,2]
[422577273,1779120632000,-154.74,0.00012603,2]
[422577275,1779120632000,-215.11887611,0.00012605,2]
[422577270,1779120632000,-159.2,0.00012548,2]
[422577280,1779120632000,-44316.96870464,0.00012969,2]
[422577281,1779120632000,-1982.90913914,0.00012969,2]
[422577279,1779120632000,-16830.39358622,0.00012969,2]
[422577277,1779120632000,-300.0,0.00012968,2]
[422577282,1779120632000,-15960.23000236,0.00012969,2]
[422577278,1779120632000,-1200.0,0.00012968,2]
[422577283,1779120632000,-445.16237278,0.00012969,2]
[422577284,1779120632000,-1378.17418521,0.00012969,2]
[422577276,1779120632000,-374.57,0.00012653,2]
[422577307,1779120638000,-150.0,0.00013488,2]
[422577322,1779120638000,-500.0,0.00013698,2]
[422577312,1779120638000,-150.0,0.00013488,2]
[422577326,1779120638000,-500.0,0.00013698,2]
[422577328,1779120638000,-500.0,0.00013698,2]
[422577324,1779120638000,-213.60264062,0.00013698,2]
[422577335,1779120638000,-257.52,0.00013699,2]
[422577333,1779120638000,-500.0,0.00013698,2]
[422577305,1779120638000,-886.70476015,0.00013283,2]
[422577330,1779120638000,-500.0,0.00013698,2]
[422577332,1779120638000,-500.0,0.00013698,2]
[422577334,1779120638000,-200.0,0.00013699,2]
[422577336,1779120638000,-214.6,0.00013699,2]
[422577310,1779120638000,-150.0,0.00013488,2]
[422577318,1779120638000,-6464.20048737,0.00013627,2]
[422577309,1779120638000,-150.0,0.00013488,2]
[422577308,1779120638000,-150.0,0.00013488,2]
[422577320,1779120638000,-500.0,0.00013698,2]
[422577303,1779120638000,-200.0,0.00013113,2]
[422577316,1779120638000,-886.70476015,0.00013553,2]
[422577304,1779120638000,-6464.20048737,0.00013202,2]
[422577314,1779120638000,-150.0,0.00013488,2]
[422577302,1779120638000,-150.0,0.00013068,2]
[422577301,1779120638000,-3716.23979225,0.00013068,2]
[422577300,1779120638000,-886.7047602,0.00013013,2]
[422577299,1779120638000,-6464.20048738,0.0001299,2]
[422577297,1779120638000,-102701.76710965,0.00012969,2]
[422577298,1779120638000,-5000.01,0.00012969,2]
[422577331,1779120638000,-500.0,0.00013698,2]
[422577306,1779120638000,-6464.20048737,0.00013414,2]
[422577329,1779120638000,-500.0,0.00013698,2]
[422577369,1779120638000,-500.0,0.00013938,2]
[422577339,1779120638000,-894.2,0.00013699,2]
[422577376,1779120638000,-150.0,0.00013985,2]
[422577371,1779120638000,-500.0,0.00013938,2]
[422577375,1779120638000,-166.66,0.00013973,2]
[422577374,1779120638000,-500.0,0.00013938,2]
[422577377,1779120638000,-969.69792251,0.00014,2]
[422577373,1779120638000,-174.58784038,0.00013938,2]
[422577372,1779120638000,-500.0,0.00013938,2]
[422577363,1779120638000,-1018.88726229,0.00013839,2]
[422577365,1779120638000,-339.42151133,0.00013907,21]
[422577337,1779120638000,-178.83,0.00013699,2]
[422577368,1779120638000,-500.0,0.00013938,2]
[422577367,1779120638000,-339.42151133,0.00013921,21]
[422577361,1779120638000,-886.70476015,0.00013823,2]
[422577364,1779120638000,-5445.31322508,0.00013839,2]
[422577362,1779120638000,-166.66,0.00013836,2]
[422577360,1779120638000,-175.3435528,0.0001377,2]
[422577358,1779120638000,-300.0,0.0001377,2]
[422577366,1779120638000,-150.0,0.00013916,2]
[422577343,1779120638000,-150.0,0.00013702,2]
[422577353,1779120638000,-2500.0,0.0001377,2]
[422577345,1779120638000,-177.04,0.00013714,2]
[422577352,1779120638000,-2500.0,0.0001377,2]
[422577351,1779120638000,-2500.0,0.0001377,2]
[422577354,1779120638000,-2500.0,0.0001377,2]
[422577340,1779120638000,-166.66,0.00013699,2]
[422577356,1779120638000,-300.0,0.0001377,2]
[422577348,1779120638000,-500.0,0.0001377,2]
[422577357,1779120638000,-300.0,0.0001377,2]
[422577359,1779120638000,-300.0,0.0001377,2]
[422577370,1779120638000,-500.0,0.00013938,2]
[422577355,1779120638000,-1032.06057703,0.0001377,2]
[422577386,1779120640000,-179.67,0.00014132,2]
[422577388,1779120640000,-152.0,0.00014221,7]
[422577398,1779120640000,-150.0,0.00014344,2]
[422577387,1779120640000,-255.0,0.00014179,2]
[422577385,1779120640000,-150.0,0.0001413,2]
[422577382,1779120640000,-1921.95172465,0.00014083,2]
[422577383,1779120640000,-886.70476015,0.00014092,2]
[422577384,1779120640000,-166.66,0.0001411,2]
[422577380,1779120640000,-1519.36564683,0.00014051,2]
[422577378,1779120640000,-530.30207749,0.00014,2]
[422577379,1779120640000,-4944.83484054,0.00014051,2]
[422577397,1779120640000,-8828.3630933,0.00014286,2]
[422577381,1779120640000,-78.04827535,0.00014083,2]
[422577389,1779120640000,-420.0,0.00014222,2]
[422577402,1779120640000,-500.0,0.00014359,2]
[422577392,1779120640000,-166.66,0.00014247,2]
[422577404,1779120640000,-500.0,0.00014359,2]
[422577406,1779120640000,-500.0,0.00014359,2]
[422577400,1779120640000,-592.87696527,0.00014359,2]
[422577403,1779120640000,-502.12015589,0.00014359,2]
[422577405,1779120640000,-500.0,0.00014359,2]
[422577401,1779120640000,-349.53370553,0.00014359,2]
[422577407,1779120640000,-88267.46924897,0.0001436,2]
[422577394,1779120640000,-1680.0,0.00014265,2]
[422577395,1779120640000,-350.0,0.00014281,2]
[422577393,1779120640000,-6464.20048737,0.00014263,2]
[422577399,1779120640000,-509.4193249,0.00014359,2]
[422577391,1779120640000,-150.0,0.00014237,2]
[422577396,1779120640000,-923.0527281,0.00014286,2]
[422577390,1779120640000,-150.0,0.00014237,2]
[422577421,1779120643000,-3642.70196642,0.0001436,2]
[422577419,1779120643000,-1378.25319393,0.0001436,2]
[422577417,1779120643000,-316.19485261,0.0001436,2]
[422577418,1779120643000,-1563.56,0.0001436,2]
[422577415,1779120643000,-209.58003685,0.0001436,2]
[422577416,1779120643000,-16164.87187273,0.0001436,2]
[422577420,1779120643000,-3946.89730377,0.0001436,2]
[422577687,1779120646000,-10839.0951405,0.0001436,2]
[422577699,1779120921000,238.98698533,0.00030136,120]
[422577700,1779120983000,187.04384284,0.0001,2]
[422577701,1779121045000,172.08033541,0.0001,2]
[422577702,1779121104000,165.33208697,0.0001,2]
[422577704,1779121138000,838.7,0.0003013,120]
[422577705,1779121164000,165.33208697,0.0001,30]
[422577708,1779121606000,-39.44415889,0.00012658,2]
[422577707,1779121606000,-152.0,0.00012424,2]
[422577709,1779121741000,1000.0,0.00030135,120]
[422577711,1779121747000,445.62212123,7.945e-05,2]
[422577710,1779121747000,874.86067477,7.945e-05,2]
[422577712,1779121807000,875.8,0.0003013,120]
[422577721,1779121833000,-566.38339641,0.00012658,2]
[422577720,1779121833000,-152.0,0.00012432,2]
[422577722,1779121833000,-1200.0,0.00012756,2]
[422577723,1779121833000,-469.01,0.00012757,2]
[422577725,1779121833000,-1492.45,0.00012757,2]
[422577726,1779121833000,-154.13188387,0.00012769,2]
[422577727,1779121833000,-934.41745515,0.0001278,2]
[422577728,1779121833000,-150.0,0.00012868,2]
[422577730,1779121833000,-260.99829995,0.00012869,2]
[422577729,1779121833000,-173706.06958465,0.00012869,2]
[422577731,1779121833000,-6764.85518175,0.00012869,2]
[422577724,1779121833000,-679.84,0.00012757,2]
[422577751,1779121838000,-2153.72423365,0.00012869,2]
[422577752,1779121838000,-934.41745514,0.00013083,2]
[422577754,1779121838000,-3779.55,0.00013219,2]
[422577755,1779121838000,-750.0,0.00013219,2]
[422577753,1779121838000,-717.69729587,0.00013219,2]
[422577766,1779121840000,-7203.22470885,0.00013219,2]
[422577771,1779121841000,-878.64494776,0.00013219,2]
[422577772,1779121841000,-963.76004824,0.00013219,2]
[422577785,1779121843000,-375.35299928,0.00013219,2]
[422577786,1779121843000,-1010.43,0.00013229,2]
[422577790,1779121843000,-187.28,0.00013458,2]
[422577791,1779121843000,-150.0,0.00013488,2]
[422577788,1779121843000,-934.41745514,0.00013386,2]
[422577787,1779121843000,-559.2,0.00013232,2]
[422577792,1779121843000,-150.0,0.00013488,2]
[422577793,1779121843000,-151.89021174,0.00013488,2]
[422577794,1779121843000,-150.0,0.00013488,2]
[422577799,1779121843000,-142.18045774,0.00013499,2]
[422577800,1779121843000,-57.81954226,0.00013499,2]
[422577789,1779121843000,-174.13,0.00013436,2]
[422577796,1779121843000,-150.0,0.00013488,2]
[422577795,1779121843000,-150.0,0.00013488,2]
[422577809,1779121843000,-387.37401502,0.00013661,2]
[422577808,1779121843000,-465.73953374,0.00013661,2]
[422577805,1779121843000,-154.38587963,0.00013661,2]
[422577806,1779121843000,-500.0,0.00013661,2]
[422577807,1779121843000,-34.26046626,0.00013661,2]
[422577803,1779121843000,-100.26626137,0.00013603,2]
[422577802,1779121843000,-49.73373863,0.00013603,2]
[422577801,1779121843000,-929.1,0.00013567,2]
[422577798,1779121843000,-215.11887611,0.00013492,2]
[422577797,1779121843000,-150.0,0.00013488,2]
[422577804,1779121843000,-345.61412037,0.00013661,2]
[422578315,1779121847000,-1792.31,0.00013661,2]
[422578304,1779121847000,-500.0,0.00013661,2]
[422578302,1779121847000,-500.0,0.00013661,2]
[422578313,1779121847000,-153.339106,0.00013661,2]
[422578299,1779121847000,-500.0,0.00013661,2]
[422578312,1779121847000,-151.0,0.00013661,2]
[422578291,1779121847000,-500.0,0.00013661,2]
[422578297,1779121847000,-500.0,0.00013661,2]
[422578295,1779121847000,-500.0,0.00013661,2]
[422578294,1779121847000,-500.0,0.00013661,2]
[422578285,1779121847000,-112.62598498,0.00013661,2]
[422578289,1779121847000,-500.0,0.00013661,2]
[422578307,1779121847000,-500.0,0.00013661,2]
[422578310,1779121847000,-482.689254,0.00013661,2]
[422578306,1779121847000,-500.0,0.00013661,2]
[422578287,1779121847000,-500.0,0.00013661,2]
[422578322,1779121847000,-500.0,0.00013698,2]
[422578346,1779121847000,-152.529896,0.00013723,2]
[422578348,1779121847000,-151.0,0.00013723,2]
[422578332,1779121847000,-500.0,0.00013698,2]
[422578350,1779121847000,-151.0,0.00013723,2]
[422578344,1779121847000,-153.874212,0.00013723,2]
[422578329,1779121847000,-500.0,0.00013698,2]
[422578342,1779121847000,-151.0,0.00013723,2]
[422578334,1779121847000,-166.66,0.00013699,2]
[422578340,1779121847000,-150.0,0.00013718,2]
[422578336,1779121847000,-200.0,0.00013699,2]
[422578326,1779121847000,-500.0,0.00013698,2]
[422578327,1779121847000,-500.0,0.00013698,2]
[422578320,1779121847000,-500.0,0.00013698,2]
[422578324,1779121847000,-500.0,0.00013698,2]
[422578339,1779121847000,-151.0,0.00013699,2]
[422578318,1779121847000,-934.41745514,0.00013689,2]
[422578356,1779121848000,-3165.18741145,0.00013738,2]
[422578354,1779121848000,-503.82521373,0.00013737,2]
[422578352,1779121848000,-1034.5314667,0.00013736,2]
[422578625,1779121855000,152.0,0.00010002,30]
[422578626,1779121892000,599894.41123741,0.00030137,120]
[422578628,1779122233000,170.36,0.00030136,120]
[422578629,1779122445000,500.0,0.00029452,120]
[422578630,1779122545000,875.8,0.0003013,120]
[422578635,1779122889000,7882.2,0.0003013,120]
[422578640,1779122896000,-137.270423,0.00011226,2]
[422578637,1779122896000,-2000.0,0.00011176,2]
[422578639,1779122896000,-1845.02,0.00011199,2]
[422578636,1779122896000,-767.709577,0.00011128,2]
[422578638,1779122896000,-250.0,0.00011185,2]
[422578641,1779122918000,152.0,0.00010003,30]
[422578642,1779122941000,1000.0,0.00030136,120]
[422578665,1779123031000,-300.0,0.00011336,2]
[422578662,1779123031000,-759.0,0.0001131,2]
[422578668,1779123031000,-759.0,0.00011422,2]
[422578678,1779123031000,-200.0,0.00011748,2]
[422578669,1779123031000,-268.19105383,0.00011504,2]
[422578670,1779123031000,-698.86,0.00011523,2]
[422578667,1779123031000,-33845.10256815,0.00011337,2]
[422578672,1779123031000,-150.0,0.00011552,2]
[422578673,1779123031000,-5780.85,0.00011553,2]
[422578674,1779123031000,-622.5,0.00011604,2]
[422578658,1779123031000,-197.81098472,0.00011281,2]
[422578675,1779123031000,-759.0,0.00011646,2]
[422578676,1779123031000,-151.0,0.0001169,2]
[422578671,1779123031000,-759.0,0.00011534,2]
[422578664,1779123031000,-622.5,0.00011321,2]
[422578648,1779123031000,-3489.5,0.00011074,2]
[422578656,1779123031000,-2218.52,0.00011248,2]
[422578677,1779123031000,-18167.45,0.00011693,2]
[422578647,1779123031000,-487.05,0.00011033,2]
[422578649,1779123031000,-152.18591653,0.00011104,2]
[422578651,1779123031000,-858.64724402,0.00011104,2]
[422578653,1779123031000,-268.19105385,0.00011126,2]
[422578654,1779123031000,-362.729577,0.00011226,2]
[422578661,1779123031000,-300.0,0.00011309,2]
[422578652,1779123031000,-1451.78111415,0.00011104,2]
[422578655,1779123031000,-1200.0,0.00011247,2]
[422578666,1779123031000,-8610.42743185,0.00011337,2]
[422578657,1779123031000,-500.0,0.00011277,2]
[422578660,1779123031000,-300.0,0.00011309,2]
[422578659,1779123031000,-300.0,0.00011309,2]
[422578663,1779123031000,-268.19105383,0.00011315,2]
[422578650,1779123031000,-382.9457253,0.00011104,2]
[422578679,1779123031000,-183.6,0.00011748,2]
[422578685,1779123031000,-183.6,0.00011748,2]
[422578683,1779123031000,-183.6,0.00011748,2]
[422578715,1779123031000,-150.0,0.00012494,2]
[422578716,1779123031000,-150.0,0.00012494,2]
[422578714,1779123031000,-622.5,0.00012453,2]
[422578710,1779123031000,-487.05,0.00012412,2]
[422578681,1779123031000,-183.6,0.00011748,2]
[422578713,1779123031000,-420.0,0.00012423,2]
[422578708,1779123031000,-154.59,0.00012342,2]
[422578712,1779123031000,-420.0,0.00012423,2]
[422578709,1779123031000,-1680.0,0.00012372,2]
[422578707,1779123031000,-175.62,0.00012329,2]
[422578697,1779123031000,-3271.05191298,0.00012136,2]
[422578703,1779123031000,-338.9201,0.00012247,2]
[422578700,1779123031000,-500.0,0.00012215,2]
[422578702,1779123031000,-250.0,0.00012241,2]
[422578698,1779123031000,-622.5,0.0001217,2]
[422578711,1779123031000,-300.0,0.00012423,2]
[422578701,1779123031000,-315.08411638,0.00012215,2]
[422578699,1779123031000,-759.0,0.00012206,2]
[422578693,1779123031000,-622.5,0.00011887,2]
[422578691,1779123031000,-208.5339928,0.00011835,2]
[422578690,1779123031000,-354.01,0.00011832,2]
[422578688,1779123031000,-4034.12,0.00011804,2]
[422578687,1779123031000,-10798.55,0.00011776,2]
[422578692,1779123031000,-759.0,0.0001187,2]
[422578689,1779123031000,-680.16,0.0001181,2]
[422578695,1779123031000,-150.0,0.00011993,2]
[422578694,1779123031000,-759.0,0.00011982,2]
[422578705,1779123031000,-250.0,0.00012287,2]
[422578704,1779123031000,-500.0,0.00012287,2]
[422578706,1779123031000,-764.0,0.00012318,2]
[422578686,1779123031000,-759.0,0.00011758,2]
[422578696,1779123031000,-759.0,0.00012094,2]
[422578731,1779123032000,-500.0,0.00012494,2]
[422578724,1779123032000,-500.0,0.00012494,2]
[422578725,1779123032000,-500.0,0.00012494,2]
[422578734,1779123032000,-500.0,0.00012494,2]
[422578737,1779123032000,-500.0,0.00012558,2]
[422578736,1779123032000,-152.0,0.00012501,2]
[422578740,1779123032000,-255.0,0.00012614,2]
[422578728,1779123032000,-500.0,0.00012494,2]
[422578738,1779123032000,-500.0,0.00012561,2]
[422578732,1779123032000,-500.0,0.00012494,2]
[422578721,1779123032000,-500.0,0.00012494,2]
[422578726,1779123032000,-500.0,0.00012494,2]
[422578727,1779123032000,-500.0,0.00012494,2]
[422578723,1779123032000,-500.0,0.00012494,2]
[422578730,1779123032000,-500.0,0.00012494,2]
[422578722,1779123032000,-291.48088761,0.00012494,2]
[422578729,1779123032000,-500.0,0.00012494,2]
[422578720,1779123032000,-500.0,0.00012494,2]
[422578718,1779123032000,-208.0724838,0.00012494,2]
[422578717,1779123032000,-150.0,0.00012494,2]
[422578719,1779123032000,-500.0,0.00012494,2]
[422578733,1779123032000,-500.0,0.00012494,2]
[422578746,1779123032000,-42705.01653435,0.00012669,2]
[422578735,1779123032000,-151.67627943,0.00012494,2]
[422578739,1779123032000,-2000.0,0.00012573,2]
[422578745,1779123032000,-1399.76192494,0.00012669,2]
[422578760,1779123032000,-2468.05833915,0.00012669,2]
[422578764,1779123032000,-843.518276,0.00012669,2]
[422578763,1779123032000,-4200.89622694,0.00012669,2]
[422578762,1779123032000,-34141.28420659,0.00012669,2]
[422578759,1779123032000,-598.50315,0.00012669,2]
[422578756,1779123032000,-340.48204018,0.00012669,2]
[422578757,1779123032000,-4632.34278382,0.00012669,2]
[422578758,1779123032000,-523.00000001,0.00012669,2]
[422578755,1779123032000,-259.37939,0.00012669,2]
[422578754,1779123032000,-741.77673488,0.00012669,2]
[422578761,1779123032000,-3809.40052919,0.00012669,2]
[422578753,1779123032000,-557.25436059,0.00012669,2]
[422578751,1779123032000,-32294.64127393,0.00012669,2]
[422578747,1779123032000,-151.0,0.00012669,2]
[422578741,1779123032000,-166.66,0.00012645,2]
[422578742,1779123032000,-151.0,0.00012666,2]
[422578743,1779123032000,-386.79635551,0.00012669,2]
[422578749,1779123032000,-151.0,0.00012669,2]
[422578750,1779123032000,-177.106754,0.00012669,2]
[422578748,1779123032000,-151.0,0.00012669,2]
[422578752,1779123032000,-335.31456548,0.00012669,2]
[422578744,1779123032000,-13242.34631598,0.00012669,2]
[422578785,1779123037000,-6013.0,0.0001274,2]
[422578782,1779123037000,-6770.80923414,0.00012669,2]
[422578783,1779123037000,-3100.0,0.000127,4]
[422578784,1779123037000,-197.81098472,0.00012705,2]
[422578780,1779123037000,-6802.7648,0.00012669,2]
[422578788,1779123037000,-153.079842,0.00012769,2]
[422578776,1779123037000,-64.18508279,0.00012669,2]
[422578778,1779123037000,-46022.79684045,0.00012669,2]
[422578779,1779123037000,-2500.0,0.00012669,2]
[422578777,1779123037000,-472.1,0.00012669,2]
[422578775,1779123037000,-264.69505749,0.00012569,2]
[422578774,1779123037000,-300.72668511,0.00012569,2]
[422578786,1779123037000,-151.0,0.00012766,2]
[422578789,1779123037000,-151.0,0.00012769,2]
[422578787,1779123037000,-1097.29439826,0.00012768,3]
[422578781,1779123037000,-2000.0,0.00012669,2]
[422578798,1779123037000,-500.0,0.00012916,2]
[422578790,1779123037000,-151.0,0.00012769,2]
[422578805,1779123037000,-500.0,0.00013109,2]
[422578802,1779123037000,-42705.01653427,0.00012917,2]
[422578803,1779123037000,-295.96466,0.00012917,2]
[422578794,1779123037000,-500.0,0.00012835,2]
[422578793,1779123037000,-6300.0,0.000128,4]
[422578792,1779123037000,-133760.6948,0.00012769,2]
[422578804,1779123037000,-386.79635547,0.00013041,2]
[422578791,1779123037000,-151.0,0.00012769,2]
[422578799,1779123037000,-156.32266895,0.00012916,2]
[422578800,1779123037000,-196.16488513,0.00012916,2]
[422578797,1779123037000,-500.0,0.00012916,2]
[422578801,1779123037000,-13242.34631596,0.00012917,2]
[422578795,1779123037000,-9500.0,0.000129,4]
[422578796,1779123037000,-234.48,0.00012902,2]
[422578896,1779123038000,-500.0,0.00013698,2]
[422578891,1779123038000,-500.0,0.00013698,2]
[422578876,1779123038000,-13242.34631596,0.00013661,2]
[422578885,1779123038000,-166.66,0.00013688,2]
[422578889,1779123038000,-595.2,0.00013698,2]
[422578870,1779123038000,-587.0,0.00013648,2]
[422578887,1779123038000,-500.0,0.00013698,2]
[422578874,1779123038000,-500.0,0.00013657,2]
[422578883,1779123038000,-150.0,0.00013679,2]
[422578881,1779123038000,-197.81098472,0.00013669,2]
[422578872,1779123038000,-1001.59004875,0.0001365,2]
[422578898,1779123038000,-592.87696527,0.00013698,2]
[422578878,1779123038000,-42705.01653427,0.00013661,2]
[422578901,1779123038000,-475.1641071,0.00013698,2]
[422578907,1779123038000,-500.0,0.00013698,2]
[422578913,1779123038000,-500.0,0.00013698,2]
[422578911,1779123038000,-500.0,0.00013698,2]
[422578894,1779123038000,-509.4193249,0.00013698,2]
[422578905,1779123038000,-500.0,0.00013698,2]
[422578909,1779123038000,-500.0,0.00013698,2]
[422578917,1779123038000,-500.0,0.00013698,2]
[422578915,1779123038000,-500.0,0.00013698,2]
[422578919,1779123038000,-500.0,0.00013698,2]
[422578921,1779123038000,-500.0,0.00013698,2]
[422578923,1779123038000,-500.0,0.00013698,2]
[422578937,1779123038000,-941.75,0.00013698,2]
[422578925,1779123038000,-530.09266044,0.00013698,2]
[422578868,1779123038000,-587.0,0.00013648,2]
[422578903,1779123038000,-500.0,0.00013698,2]
[422578864,1779123038000,-150.0,0.00013638,2]
[422578810,1779123038000,-4266.138127,0.00013354,2]
[422578859,1779123038000,-1983.6517658,0.00013627,2]
[422578933,1779123038000,-941.75,0.00013698,2]
[422578814,1779123038000,-687.274359,0.00013387,2]
[422578808,1779123038000,-354.01,0.00013311,2]
[422578806,1779123038000,-13242.34631596,0.00013165,2]
[422578807,1779123038000,-42705.01653427,0.00013165,2]
[422578809,1779123038000,-13164.92773,0.00013354,2]
[422578812,1779123038000,-500.0,0.00013383,2]
[422578818,1779123038000,-386.79635547,0.00013413,2]
[422578816,1779123038000,-678.582205,0.00013387,2]
[422578820,1779123038000,-13242.34631596,0.00013413,2]
[422578822,1779123038000,-42705.01653427,0.00013413,2]
[422578832,1779123038000,-150.0,0.00013488,2]
[422578828,1779123038000,-150.0,0.00013488,2]
[422578830,1779123038000,-150.0,0.00013488,2]
[422578824,1779123038000,-150.0,0.00013488,2]
[422578834,1779123038000,-150.0,0.00013488,2]
[422578826,1779123038000,-150.0,0.00013488,2]
[422578836,1779123038000,-150.0,0.00013488,2]
[422578838,1779123038000,-500.0,0.00013499,2]
[422578840,1779123038000,-150.0,0.0001352,2]
[422578843,1779123038000,-150.0,0.00013551,2]
[422578845,1779123038000,-261.08843426,0.00013569,2]
[422578848,1779123038000,-150.0,0.00013595,2]
[422578852,1779123038000,-150.0,0.00013615,2]
[422578846,1779123038000,-150.0,0.00013583,2]
[422578850,1779123038000,-2351.0,0.00013609,2]
[422578854,1779123038000,-150.0,0.00013624,2]
[422578861,1779123038000,-2409.4123877,0.00013627,2]
[422578857,1779123038000,-101187.3904267,0.00013627,2]
[422578866,1779123038000,-150.0,0.00013647,2]
[422578935,1779123038000,-941.75,0.00013698,2]
[422578983,1779123038000,-500.0,0.00013698,2]
[422578929,1779123038000,-941.75,0.00013698,2]
[422578976,1779123038000,-534.75180877,0.00013698,2]
[422578987,1779123038000,-500.0,0.00013698,2]
[422578975,1779123038000,-500.0,0.00013698,2]
[422578986,1779123038000,-558.26,0.00013698,2]
[422578977,1779123038000,-500.0,0.00013698,2]
[422578978,1779123038000,-500.0,0.00013698,2]
[422578982,1779123038000,-500.0,0.00013698,2]
[422578979,1779123038000,-500.0,0.00013698,2]
[422578981,1779123038000,-500.0,0.00013698,2]
[422578980,1779123038000,-500.0,0.00013698,2]
[422579003,1779123038000,-500.0,0.00013698,2]
[422578984,1779123038000,-558.26,0.00013698,2]
[422578985,1779123038000,-500.0,0.00013698,2]
[422578969,1779123038000,-500.0,0.00013698,2]
[422578988,1779123038000,-558.26,0.00013698,2]
[422578993,1779123038000,-558.26,0.00013698,2]
[422578989,1779123038000,-558.26,0.00013698,2]
[422578990,1779123038000,-558.26,0.00013698,2]
[422578999,1779123038000,-500.0,0.00013698,2]
[422578991,1779123038000,-558.26,0.00013698,2]
[422578998,1779123038000,-500.0,0.00013698,2]
[422579000,1779123038000,-500.0,0.00013698,2]
[422578994,1779123038000,-558.26,0.00013698,2]
[422578995,1779123038000,-500.0,0.00013698,2]
[422578996,1779123038000,-500.0,0.00013698,2]
[422578997,1779123038000,-500.0,0.00013698,2]
[422579002,1779123038000,-500.0,0.00013698,2]
[422578931,1779123038000,-941.75,0.00013698,2]
[422578992,1779123038000,-558.26,0.00013698,2]
[422578974,1779123038000,-500.0,0.00013698,2]
[422579001,1779123038000,-500.0,0.00013698,2]
[422578970,1779123038000,-500.0,0.00013698,2]
[422578927,1779123038000,-941.75,0.00013698,2]
[422578939,1779123038000,-941.75,0.00013698,2]
[422578943,1779123038000,-941.75,0.00013698,2]
[422578941,1779123038000,-941.75,0.00013698,2]